fUST/lending_fUST_20250912
["ID","MTS","AMOUNT","RATE_DAILY","PERIOD"]
[385071313,1757659404115,-500.0,0.00013715,2]
[385071314,1757659404147,-173.47998872,0.00013715,2]
[385071315,1757659404270,-306.52001128,0.00013715,2]
[385071318,1757659408714,871.94558077,0.00013577,2]
[385071321,1757659416835,1440.0,0.00013576,2]
[385071328,1757659430424,-480.0,0.00013713,2]
[385071329,1757659430456,-480.0,0.00013713,2]
[385071330,1757659430487,-480.0,0.00013713,2]
[385071331,1757659430518,-480.0,0.00013713,2]
[385071332,1757659430548,-480.0,0.00013713,2]
[385071333,1757659430580,-391.94558077,0.00013714,2]
[385071334,1757659430609,-480.0,0.00013714,2]
[385071335,1757659430643,-480.0,0.00013714,2]
[385071336,1757659430676,-480.0,0.00013714,2]
[385071337,1757659432962,2400.0,0.00013576,2]
[385071340,1757659441707,480.0,0.00013577,2]
[385071342,1757659444843,323.61,0.00012329,2]
[385071343,1757659447401,209.4975141,0.00012792,2]
[385071344,1757659450036,960.0,0.00013576,2]
[385071345,1757659450434,-480.0,0.00013713,2]
[385071346,1757659450466,-480.0,0.00013713,2]
[385071347,1757659450496,-480.0,0.00013714,2]
[385071348,1757659450527,-300.0,0.00013714,2]
[385071349,1757659450556,-480.0,0.00013714,2]
[385071350,1757659450585,-480.0,0.00013714,2]
[385071351,1757659450616,-480.0,0.00013714,2]
[385071352,1757659450647,-627.90112269,0.00013714,2]
[385071354,1757659451863,-480.0,0.00013713,2]
[385071355,1757659451895,-480.0,0.00013714,2]
[385071356,1757659452020,-4825.87159685,0.00013715,2]
[385071357,1757659452038,-10000.01,0.00013715,2]
[385071358,1757659452100,-10000.01,0.00013715,2]
[385071359,1757659452135,-480.0,0.00013715,2]
[385071360,1757659452157,-480.0,0.00013715,2]
[385071361,1757659452174,-8080.01,0.00013715,2]
[385071362,1757659452206,-10000.01,0.00013715,2]
[385071363,1757659452223,-10000.01,0.00013715,2]
[385071364,1757659455221,966.29,0.00012329,2]
[385071365,1757659457999,967.60544143,0.00013576,2]
[385071367,1757659460436,-487.60544143,0.00013713,2]
[385071368,1757659460468,-480.0,0.00013713,2]
[385071369,1757659460501,-480.0,0.00013714,2]
[385071370,1757659460532,-484.68852537,0.00013714,2]
[385071371,1757659460632,-6135.4220664,0.00013715,2]
[385071372,1757659460649,-10000.01,0.00013715,2]
[385071373,1757659460698,-10000.01,0.00013715,2]
[385071374,1757659460857,-10000.01,0.00013715,2]
[385071375,1757659461014,-10000.01,0.00013715,2]
[385071376,1757659461138,-10000.01,0.00013715,2]
[385071377,1757659461253,-10000.01,0.00013715,2]
[385071378,1757659461394,-10000.01,0.00013715,2]
[385071379,1757659461528,-480.0,0.00013714,2]
[385071380,1757659461577,-9040.01,0.00013715,2]
[385071381,1757659461659,-10000.01,0.00013715,2]
[385071382,1757659465670,1136.49,0.00012329,2]
[385071383,1757659466977,480.0,0.00013577,2]
[385071388,1757659470472,-480.0,0.00013713,2]
[385071389,1757659470504,-480.0,0.00013713,2]
[385071390,1757659470535,-480.0,0.00013714,2]
[385071391,1757659470568,-480.0,0.00013714,2]
[385071392,1757659470597,-487.97934473,0.00013714,2]
[385071393,1757659470626,-480.0,0.00013714,2]
[385071394,1757659470750,-4224.05131054,0.00013715,2]
[385071395,1757659470765,-10000.01,0.00013715,2]
[385071396,1757659471105,-10000.01,0.00013715,2]
[385071397,1757659471656,-480.0,0.00013713,2]
[385071398,1757659471690,-480.0,0.00013714,2]
[385071399,1757659471747,-8080.01,0.00013715,2]
[385071400,1757659471778,-10000.01,0.00013715,2]
[385071401,1757659471987,-10000.01,0.00013715,2]
[385071402,1757659472101,-10000.01,0.00013715,2]
[385071403,1757659472238,-10000.01,0.00013715,2]
[385071404,1757659472402,-10000.01,0.00013715,2]
[385071405,1757659472526,-10000.01,0.00013715,2]
[385071406,1757659474905,1753.37331411,0.00013578,2]
[385071407,1757659476060,998.49,0.00012329,2]
[385071409,1757659483732,1447.79889611,0.00013577,2]
[385071412,1757659484875,26903.2696772,0.00012792,2]
[385071413,1757659486448,976.31,0.00012329,2]
[385071416,1757659492913,965.67044077,0.00013576,2]
[385071417,1757659496961,813.59,0.00012329,2]
[385071419,1757659507323,677.99,0.00012329,2]
[385071420,1757659509080,2465.67044077,0.00013576,2]
[385071422,1757659517590,5077.08911846,0.0001357,2]
[385071423,1757659517617,10000.01,0.0001357,2]
[385071424,1757659517644,1982.9491129,0.0001357,2]
[385071425,1757659518199,564.99,0.00012329,2]
[385071427,1757659528619,470.83,0.00012329,2]
[385071428,1757659530956,-6981.2408871,0.00013707,2]
[385071429,1757659531067,-2168.88100171,0.00013707,2]
[385071430,1757659531095,-5662.24799658,0.00013707,2]
[385071431,1757659531306,-2030.296672,0.00013707,2]
[385071432,1757659531342,-217.38167397,0.00013707,2]
[385071433,1757659531377,-485.67044077,0.00013713,2]
[385071434,1757659531412,-480.0,0.00013713,2]
[385071435,1757659531450,-300.0,0.00013713,2]
[385071436,1757659531489,-1200.0,0.00013713,2]
[385071437,1757659531526,-93.31242652,0.00013713,2]
[385071438,1757659531633,-386.68757348,0.00013713,2]
[385071439,1757659531669,-480.0,0.00013713,2]
[385071440,1757659531935,-480.0,0.00013713,2]
[385071441,1757659531968,-489.03312063,0.00013713,2]
[385071442,1757659532000,-480.0,0.00013714,2]
[385071443,1757659532032,-480.0,0.00013714,2]
[385071444,1757659532065,-487.79889611,0.00013714,2]
[385071445,1757659532096,-480.0,0.00013714,2]
[385071446,1757659532127,-480.0,0.00013714,2]
[385071447,1757659532158,-487.84017376,0.00013714,2]
[385071448,1757659532190,-57.29047204,0.00013714,2]
[385071449,1757659532281,-422.70952796,0.00013714,2]
[385071450,1757659532313,-480.0,0.00013714,2]
[385071451,1757659532345,-480.0,0.00013714,2]
[385071452,1757659532375,-481.1272992,0.00013714,2]
[385071453,1757659532405,-480.0,0.00013714,2]
[385071454,1757659532438,-487.83673986,0.00013714,2]
[385071455,1757659532469,-480.0,0.00013714,2]
[385071456,1757659532499,-480.0,0.00013714,2]
[385071457,1757659532530,-480.0,0.00013714,2]
[385071458,1757659532560,-480.0,0.00013714,2]
[385071459,1757659532591,-16.66286596,0.00013714,2]
[385071460,1757659533055,-395.82076332,0.00013714,2]
[385071461,1757659533072,-67.51637072,0.00013714,2]
[385071462,1757659533082,-412.48362928,0.00013714,2]
[385071463,1757659533099,-67.51637072,0.00013714,2]
[385071464,1757659533108,-412.48362928,0.00013714,2]
[385071465,1757659534770,969.03312063,0.00013576,2]
[385071466,1757659539036,392.35,0.00012329,2]
[385071467,1757659540576,-480.0,0.00013713,2]
[385071468,1757659540609,-480.0,0.00013713,2]
[385071469,1757659540641,-67.51637072,0.00013714,2]
[385071470,1757659540672,-480.0,0.00013714,2]
[385071471,1757659540704,-750.31,0.00013714,2]
[385071472,1757659540734,-480.0,0.00013714,2]
[385071473,1757659540765,-198.77364617,0.00013714,2]
[385071474,1757659540800,-480.0,0.00013714,2]
[385071475,1757659540831,-480.0,0.00013714,2]
[385071476,1757659540862,-480.0,0.00013714,2]
[385071477,1757659540892,-480.0,0.00013714,2]
[385071478,1757659541000,-480.0,0.00013714,2]
[385071479,1757659541032,-750.31,0.00013715,2]
[385071480,1757659541063,-750.31,0.00013715,2]
[385071481,1757659541094,-750.31,0.00013715,2]
[385071482,1757659541126,-750.31,0.00013715,2]
[385071483,1757659541156,-750.31,0.00013715,2]
[385071484,1757659541187,-750.31,0.00013715,2]
[385071485,1757659541333,-750.31,0.00013715,2]
[385071486,1757659541364,-750.31,0.00013715,2]
[385071487,1757659541395,-750.31,0.00013715,2]
[385071488,1757659541878,-323.09996622,0.00013713,2]
[385071489,1757659541895,-156.90003378,0.00013713,2]
[385071490,1757659541905,-480.0,0.00013714,2]
[385071491,1757659541914,-4861.24996622,0.00013715,2]
[385071492,1757659541958,-480.0,0.00013714,2]
[385071493,1757659541968,-9520.01,0.00013715,2]
[385071494,1757659543911,17625.18174691,0.00013578,2]
[385071497,1757659549444,326.96,0.00012329,2]
[385071498,1757659550585,-480.0,0.00013713,2]
[385071499,1757659550614,-480.0,0.00013713,2]
[385071500,1757659550645,-426.29197751,0.00013714,2]
[385071501,1757659550678,-496.27021635,0.00013714,2]
[385071502,1757659550712,-480.0,0.00013714,2]
[385071503,1757659550746,-480.0,0.00013714,2]
[385071504,1757659550778,-480.0,0.00013714,2]
[385071505,1757659550928,-480.0,0.00013712,2]
[385071506,1757659550974,-2874.88561228,0.00013715,2]
[385071507,1757659550991,-480.0,0.00013715,2]
[385071508,1757659551015,-9040.01,0.00013715,2]
[385071512,1757659559553,480.0,0.00013576,2]
[385071513,1757659560080,272.47,0.00012329,2]
[385071515,1757659567567,480.0,0.00013576,2]
[385071516,1757659570471,227.06,0.00012329,2]
[385071519,1757659580888,189.21,0.00012329,2]
[385071522,1757659583027,3500.44,0.00013576,2]
[385071523,1757659591292,157.68,0.00012329,2]
[385071524,1757659591783,3980.44,0.00013576,2]
[385071525,1757659601739,788.42,0.00012329,2]
[385071526,1757659609743,676.76,0.00013575,2]
[385071527,1757659609809,1092.73306871,0.00013575,2]
[385071528,1757659618508,1769.49306871,0.00013575,2]
[385071529,1757659621686,166.66666667,0.00013612,2]
[385071534,1757659634694,2922.49306871,0.00013575,2]
[385071543,1757659640849,-489.14633156,0.00013712,2]
[385071544,1757659640926,-773.21,0.00013712,2]
[385071545,1757659641000,-507.13673715,0.00013712,2]
[385071546,1757659641064,-300.0,0.00013712,2]
[385071547,1757659641128,-480.0,0.00013712,2]
[385071548,1757659641197,-373.0,0.00013712,2]
[385071549,1757659641263,-480.0,0.00013713,2]
[385071550,1757659641331,-654.58386258,0.00013713,2]
[385071551,1757659641638,-1885.85613742,0.00013713,2]
[385071552,1757659641702,-480.0,0.00013713,2]
[385071553,1757659641768,-480.0,0.00013713,2]
[385071554,1757659641833,-480.0,0.00013713,2]
[385071555,1757659642051,-480.0,0.00013713,2]
[385071556,1757659642118,-480.0,0.00013713,2]
[385071557,1757659642181,-480.0,0.00013713,2]
[385071558,1757659642502,-1537.98,0.00013713,2]
[385071559,1757659642565,-480.0,0.00013713,2]
[385071560,1757659642626,-386.23740906,0.00013713,2]
[385071561,1757659642687,-480.0,0.00013713,2]
[385071562,1757659642750,-480.0,0.00013713,2]
[385071563,1757659642811,-500.0,0.00013714,2]
[385071564,1757659642875,-480.0,0.00013714,2]
[385071565,1757659642936,-480.0,0.00013714,2]
[385071566,1757659643103,-480.0,0.00013714,2]
[385071567,1757659643165,-480.0,0.00013714,2]
[385071568,1757659643224,-480.0,0.00013714,2]
[385071569,1757659643285,-480.0,0.00013714,2]
[385071570,1757659643347,-480.27096398,0.00013714,2]
[385071571,1757659643408,-485.58446123,0.00013714,2]
[385071572,1757659643490,-481.93309428,0.00013714,2]
[385071573,1757659643558,-482.66831065,0.00013714,2]
[385071574,1757659643622,-480.0,0.00013714,2]
[385071575,1757659643684,-480.0,0.00013714,2]
[385071578,1757659644654,234.8030474,0.00013575,2]
[385071579,1757659649165,-480.0,0.00013712,2]
[385071580,1757659649237,-490.16835222,0.00013714,2]
[385071581,1757659649307,-480.0,0.00013714,2]
[385071582,1757659649373,-480.0,0.00013714,2]
[385071583,1757659649438,-480.0,0.00013714,2]
[385071584,1757659649505,-480.0,0.00013714,2]
[385071585,1757659649575,-480.0,0.00013714,2]
[385071586,1757659649646,-488.11613169,0.00013714,2]
[385071587,1757659649719,-490.86143636,0.00013714,2]
[385071588,1757659649915,-480.0,0.00013714,2]
[385071589,1757659650346,-480.0,0.00013714,2]
[385071590,1757659650420,-480.0,0.00013714,2]
[385071591,1757659650489,-480.0,0.00013714,2]
[385071592,1757659650554,-480.0,0.00013714,2]
[385071593,1757659650619,-321.39377504,0.00013714,2]
[385071594,1757659650685,-480.0,0.00013714,2]
[385071595,1757659650750,-500.0,0.00013714,2]
[385071596,1757659650814,-629.14060203,0.00013714,2]
[385071597,1757659650882,-480.0,0.00013714,2]
[385071598,1757659650948,-480.0,0.00013714,2]
[385071601,1757659655226,-480.0,0.00013712,2]
[385071602,1757659655293,-480.0,0.00013713,2]
[385071603,1757659655361,-480.0,0.00013714,2]
[385071604,1757659655429,-480.0,0.00013714,2]
[385071605,1757659655498,-480.0,0.00013714,2]
[385071606,1757659655565,-480.0,0.00013714,2]
[385071607,1757659655633,-282.10423529,0.00013714,2]
[385071608,1757659655699,-480.0,0.00013714,2]
[385071609,1757659655767,-480.0,0.00013714,2]
[385071610,1757659655850,-480.0,0.00013714,2]
[385071611,1757659655929,-315.80152942,0.00013714,2]
[385071612,1757659658356,12259.36892544,0.00013577,2]
[385071613,1757659665882,-480.0,0.00013713,2]
[385071614,1757659665947,-480.0,0.00013713,2]
[385071615,1757659666015,-480.0,0.00013713,2]
[385071616,1757659666085,-164.19847058,0.00013714,2]
[385071617,1757659666151,-486.45043996,0.00013714,2]
[385071618,1757659666216,-481.79782016,0.00013714,2]
[385071619,1757659666282,-480.0,0.00013714,2]
[385071620,1757659666349,-480.0,0.00013714,2]
[385071621,1757659666413,-480.0,0.00013714,2]
[385071622,1757659666477,-480.0,0.00013714,2]
[385071623,1757659666544,-480.0,0.00013714,2]
[385071624,1757659667031,1440.0,0.00013576,2]
[385071627,1757659676036,-480.0,0.00013714,2]
[385071628,1757659676109,-480.0,0.00013714,2]
[385071629,1757659676180,-271.14443222,0.00013714,2]
[385071630,1757659676246,-480.0,0.00013714,2]
[385071633,1757659676312,-480.0,0.00013714,2]
[385071634,1757659676376,-480.0,0.00013714,2]
[385071635,1757659676439,-166.66666667,0.00013714,2]
[385071636,1757659676506,-480.0,0.00013714,2]
[385071637,1757659676571,-480.0,0.00013714,2]
[385071638,1757659676638,-480.0,0.00013714,2]
[385071639,1757659676708,-480.0,0.00013714,2]
[385071640,1757659676777,-4.38780222,0.00013714,2]
[385071641,1757659682577,5402.8288139,0.00013699,2]
[385071642,1757659683053,8591.50275111,0.00013577,2]
[385071644,1757659685714,201.2191804,0.00012814,2]
[385071645,1757659685938,-300.0,0.00013713,2]
[385071646,1757659686007,-475.61219778,0.00013714,2]
[385071647,1757659686078,-480.0,0.00013714,2]
[385071648,1757659686145,-480.0,0.00013714,2]
[385071649,1757659686213,-480.0,0.00013714,2]
[385071650,1757659686280,-181.02,0.00013714,2]
[385071651,1757659686346,-592.28956643,0.00013714,2]
[385071652,1757659686414,-613.67862645,0.00013714,2]
[385071653,1757659686483,-480.0,0.00013714,2]
[385071654,1757659686552,-480.0,0.00013714,2]
[385071655,1757659686622,-394.80921868,0.00013714,2]
[385071656,1757659691026,480.0,0.00013576,2]
[385071659,1757659705951,-480.0,0.00013713,2]
[385071660,1757659706025,-480.0,0.00013713,2]
[385071661,1757659706094,-480.0,0.00013713,2]
[385071662,1757659706162,-480.0,0.00013713,2]
[385071663,1757659706233,-525.96,0.00013713,2]
[385071664,1757659706302,-480.0,0.00013713,2]
[385071665,1757659706374,-85.19078132,0.00013714,2]
[385071666,1757659706438,-480.0,0.00013714,2]
[385071667,1757659706503,-480.0,0.00013714,2]
[385071668,1757659706568,-480.0,0.00013714,2]
[385071669,1757659706637,-480.0,0.00013714,2]
[385071670,1757659708418,2925.96,0.00013576,2]
[385071671,1757659712653,1372.4494308,0.00012814,2]
[385071672,1757659715998,-480.0,0.00013713,2]
[385071673,1757659716066,-480.0,0.00013713,2]
[385071674,1757659716130,-480.0,0.00013714,2]
[385071675,1757659716194,-480.0,0.00013714,2]
[385071676,1757659716257,-483.448295,0.00013714,2]
[385071677,1757659716316,-485.45406545,0.00013714,2]
[385071678,1757659716374,-480.0,0.00013714,2]
[385071679,1757659716432,-480.0,0.00013714,2]
[385071680,1757659716494,-480.0,0.00013714,2]
[385071681,1757659716556,-480.0,0.00013714,2]
[385071682,1757659717305,960.0,0.00013576,2]
[385071684,1757659731012,-480.0,0.00013713,2]
[385071685,1757659731074,-480.0,0.00013713,2]
[385071686,1757659731131,-480.0,0.00013714,2]
[385071687,1757659731187,-480.0,0.00013714,2]
[385071688,1757659731241,-480.0,0.00013714,2]
[385071689,1757659731299,-480.0,0.00013714,2]
[385071690,1757659731361,-480.0,0.00013714,2]
[385071691,1757659731416,-480.0,0.00013714,2]
[385071692,1757659731471,-480.0,0.00013714,2]
[385071693,1757659731534,-480.0,0.00013714,2]
[385071694,1757659732531,204.042108,0.00013302,2]
[385071695,1757659732806,1736.467715,0.00013303,2]
[385071697,1757659733147,1008.71103593,0.00013304,2]
[385071698,1757659733502,318.947571,0.00013393,2]
[385071699,1757659733609,960.0,0.00013576,2]
[385071700,1757659733811,344.88173246,0.00013398,2]
[385071703,1757659741146,-480.0,0.00013713,2]
[385071704,1757659741209,-480.0,0.00013713,2]
[385071705,1757659741265,-480.0,0.00013713,2]
[385071706,1757659741318,-480.0,0.00013714,2]
[385071707,1757659741373,-480.0,0.00013714,2]
[385071708,1757659741430,-481.66034303,0.00013714,2]
[385071709,1757659741486,-488.26606959,0.00013714,2]
[385071710,1757659741540,-480.0,0.00013714,2]
[385071711,1757659741597,-480.0,0.00013714,2]
[385071712,1757659741656,-480.0,0.00013714,2]
[385071713,1757659742517,960.0,0.00013576,2]
[385071715,1757659759098,-480.0,0.00013713,2]
[385071716,1757659759163,-480.0,0.00013713,2]
[385071717,1757659759222,-480.0,0.00013714,2]
[385071718,1757659759280,-480.0,0.00013714,2]
[385071719,1757659759340,-480.0,0.00013714,2]
[385071720,1757659759403,-480.0,0.00013714,2]
[385071721,1757659759461,-480.0,0.00013714,2]
[385071722,1757659759520,-489.00371743,0.00013714,2]
[385071723,1757659759580,-480.0,0.00013714,2]
[385071724,1757659759639,-480.0,0.00013714,2]
[385071725,1757659759758,960.0,0.00013576,2]
[385071728,1757659767636,489.03312063,0.00013576,2]
[385071737,1757659776061,-489.03312063,0.00013713,2]
[385071738,1757659776134,-480.0,0.00013713,2]
[385071739,1757659776204,-3254.76,0.00013713,2]
[385071740,1757659776271,-480.0,0.00013713,2]
[385071741,1757659776336,-112.42375874,0.00013713,2]
[385071742,1757659783200,367.57624126,0.00013576,2]
[385071743,1757659786070,-480.0,0.00013712,2]
[385071744,1757659786133,-367.57624126,0.00013713,2]
[385071745,1757659786192,-480.0,0.00013714,2]
[385071746,1757659786248,-480.0,0.00013714,2]
[385071747,1757659786306,-480.0,0.00013714,2]
[385071748,1757659786366,-480.0,0.00013714,2]
[385071749,1757659786428,-491.81959489,0.00013714,2]
[385071750,1757659786488,-480.0,0.00013714,2]
[385071751,1757659786551,-480.0,0.00013714,2]
[385071752,1757659786612,-480.0,0.00013714,2]
[385071753,1757659786670,-121.2183277,0.00013714,2]
[385071754,1757659791410,158.28497895,0.00013577,2]
[385071755,1757659796079,-480.0,0.00013712,2]
[385071756,1757659796148,-480.0,0.00013713,2]
[385071757,1757659796216,-480.0,0.00013713,2]
[385071758,1757659796282,-480.0,0.00013713,2]
[385071759,1757659796345,-480.0,0.00013713,2]
[385071760,1757659796409,-480.0,0.00013713,2]
[385071761,1757659796471,-358.7816723,0.00013714,2]
[385071762,1757659796533,-485.32318461,0.00013714,2]
[385071763,1757659796597,-480.0,0.00013714,2]
[385071764,1757659796662,-480.0,0.00013714,2]
[385071765,1757659796732,-151.80028618,0.00013714,2]
[385071766,1757659806304,-480.0,0.00013713,2]
[385071767,1757659806375,-300.0,0.00013713,2]
[385071768,1757659806444,-328.19971382,0.00013714,2]
[385071769,1757659806515,-480.0,0.00013714,2]
[385071770,1757659806586,-480.0,0.00013714,2]
[385071771,1757659806658,-480.0,0.00013714,2]
[385071772,1757659806729,-480.0,0.00013714,2]
[385071773,1757659806804,-483.98089802,0.00013714,2]
[385071774,1757659806876,-480.0,0.00013714,2]
[385071775,1757659806947,-480.0,0.00013714,2]
[385071776,1757659807023,-480.0,0.00013714,2]
[385071777,1757659807066,10000.0,0.00012813,2]
[385071778,1757659808021,780.0,0.00013576,2]
[385071779,1757659826151,-2540.47,0.00013713,2]
[385071780,1757659826214,-491.28283836,0.00013714,2]
[385071781,1757659826275,-480.0,0.00013714,2]
[385071782,1757659826336,-480.0,0.00013714,2]
[385071783,1757659826400,-480.0,0.00013714,2]
[385071784,1757659826464,-490.57569353,0.00013714,2]
[385071785,1757659830971,2400.0,0.00013577,2]
[385071848,1757659836189,-480.0,0.00013713,2]
[385071849,1757659836259,-485.83684232,0.00013713,2]
[385071850,1757659836323,-480.0,0.00013714,2]
[385071851,1757659836388,-480.0,0.00013714,2]
[385071852,1757659836453,-480.0,0.00013714,2]
[385071853,1757659836517,-480.0,0.00013714,2]
[385071854,1757659836581,-480.0,0.00013714,2]
[385071855,1757659836648,-480.0,0.00013714,2]
[385071856,1757659836718,-480.0,0.00013714,2]
[385071857,1757659836790,-480.0,0.00013714,2]
[385071864,1757659838449,-480.0,0.00013712,2]
[385071865,1757659838460,-480.0,0.00013714,2]
[385071866,1757659838469,-480.0,0.00013714,2]
[385071867,1757659838478,-480.0,0.00013714,2]
[385071868,1757659838488,-480.86745239,0.00013714,2]
[385071870,1757659838496,-2114.00911449,0.00013715,2]
[385071876,1757659838545,-3116.27702014,0.00013715,2]
[385071878,1757659838555,-2030.296672,0.00013807,2]
[385071880,1757659838564,-750.31,0.00013807,2]
[385071882,1757659838573,-750.31,0.00013807,2]
[385071884,1757659838582,-500.33430816,0.00013812,2]
[385071886,1757659838591,-480.0,0.00013812,2]
[385071888,1757659838600,-480.0,0.00013812,2]
[385071890,1757659838609,-480.0,0.00013812,2]
[385071891,1757659838618,-480.0,0.00013812,2]
[385071893,1757659838627,-485.23116029,0.00013812,2]
[385071895,1757659838636,-480.0,0.00013812,2]
[385071897,1757659838645,-480.0,0.00013812,2]
[385071899,1757659838654,-480.0,0.00013812,2]
[385071901,1757659838663,-480.0,0.00013812,2]
[385071903,1757659838672,-480.0,0.00013812,2]
[385071905,1757659838681,-480.0,0.00013813,2]
[385071907,1757659838690,-504.33728506,0.00013813,2]
[385071909,1757659838700,-480.0,0.00013813,2]
[385071911,1757659838709,-480.0,0.00013813,2]
[385071913,1757659838719,-500.0,0.00013814,2]
[385071915,1757659838728,-750.31,0.00013814,2]
[385071917,1757659838738,-750.31,0.00013814,2]
[385071919,1757659838747,-750.31,0.00013814,2]
[385071921,1757659838757,-750.31,0.00013814,2]
[385071923,1757659838767,-750.31,0.00013814,2]
[385071925,1757659838776,-750.31,0.00013814,2]
[385071927,1757659838787,-750.31,0.00013814,2]
[385071929,1757659838797,-750.31,0.00013814,2]
[385071931,1757659838806,-750.31,0.00013814,2]
[385071933,1757659838816,-750.31,0.00013814,2]
[385071935,1757659838825,-750.31,0.00013814,2]
[385071937,1757659838835,-750.54765363,0.00013814,2]
[385071939,1757659838844,-419.41663565,0.00013815,2]
[385071941,1757659838853,-480.0,0.00013815,2]
[385071943,1757659838864,-480.0,0.00013815,2]
[385071945,1757659838873,-480.0,0.00013815,2]
[385071947,1757659838883,-483.69021915,0.00013815,2]
[385071949,1757659838892,-436.18133661,0.00013815,2]
[385071951,1757659838901,-480.0,0.00013815,2]
[385071953,1757659838910,-482.92183076,0.00013815,2]
[385071955,1757659838919,-480.0,0.00013815,2]
[385071957,1757659838928,-480.0,0.00013815,2]
[385071958,1757659838938,-480.0,0.00013815,2]
[385071960,1757659838947,-187.25363706,0.00013815,2]
[385071962,1757659838957,-482.35767711,0.00013815,2]
[385071964,1757659838967,-480.0,0.00013815,2]
[385071966,1757659838976,-480.0,0.00013815,2]
[385071968,1757659838985,-480.0,0.00013815,2]
[385071971,1757659838994,-482.82757776,0.00013815,2]
[385071972,1757659839004,-484.27298877,0.00013815,2]
[385071974,1757659839019,-480.0,0.00013815,2]
[385071976,1757659839029,-480.0,0.00013815,2]
[385071978,1757659839038,-480.0,0.00013815,2]
[385071980,1757659839048,-480.0,0.00013815,2]
[385071982,1757659839057,-480.0,0.00013815,2]
[385071984,1757659839066,-480.0,0.00013815,2]
[385071986,1757659839075,-480.0,0.00013815,2]
[385072003,1757659839224,-480.0,0.00013815,2]
[385072005,1757659839234,-480.0,0.00013815,2]
[385072007,1757659839243,-375.50201509,0.00013815,2]
[385072009,1757659839253,-480.0,0.00013815,2]
[385072011,1757659839262,-480.0,0.00013815,2]
[385072014,1757659839273,-480.0,0.00013815,2]
[385072015,1757659839283,-480.0,0.00013815,2]
[385072017,1757659839293,-480.0,0.00013815,2]
[385072019,1757659839302,-480.0,0.00013815,2]
[385072021,1757659839314,-480.0,0.00013815,2]
[385072023,1757659839323,-480.0,0.00013815,2]
[385072025,1757659839333,-480.0,0.00013815,2]
[385072028,1757659839342,-480.0,0.00013815,2]
[385072029,1757659839351,-480.0,0.00013815,2]
[385072032,1757659839360,-480.0,0.00013815,2]
[385072033,1757659839370,-480.0,0.00013815,2]
[385072035,1757659839379,-480.0,0.00013815,2]
[385072037,1757659839388,-480.0,0.00013815,2]
[385072039,1757659839397,-480.0,0.00013815,2]
[385072041,1757659839407,-480.0,0.00013815,2]
[385072043,1757659839416,-480.0,0.00013815,2]
[385072045,1757659839425,-480.0,0.00013815,2]
[385072047,1757659839435,-506.8303279,0.00013815,2]
[385072049,1757659839445,-480.0,0.00013815,2]
[385072051,1757659839455,-480.0,0.00013815,2]
[385072053,1757659839464,-480.0,0.00013815,2]
[385072055,1757659839473,-480.0,0.00013815,2]
[385072057,1757659839482,-480.0,0.00013815,2]
[385072059,1757659839491,-480.0,0.00013815,2]